bitfinex/quotes_BTCUSD_20250114
["timestamp","ask_amount","ask_price","bid_price","bid_amount"]
[1736865916345,0.206349,96923.0,96900.0,0.0008553]
[1736865916346,0.10422692,96907.0,96900.0,0.0008553]
[1736865916560,0.10422692,96905.0,96901.0,0.00100576]
[1736865916774,0.10422692,96902.0,96901.0,0.00100576]
[1736865916999,0.10422692,96902.0,96901.0,0.04852861]
[1736865917323,0.11150692,96902.0,96901.0,0.00100576]
[1736865917437,0.11150692,96902.0,96901.0,0.04852861]
[1736865917883,0.26150692,96902.0,96901.0,0.00100576]
[1736865918793,0.26250692,96902.0,96901.0,0.00100576]
[1736865919159,0.26350692,96902.0,96901.0,0.00100576]
[1736865919358,0.26150692,96902.0,96901.0,0.00100576]
[1736865919766,0.26250692,96902.0,96901.0,0.00100576]
[1736865919966,0.26150692,96902.0,96901.0,0.00100576]
[1736865920405,0.26250692,96902.0,96901.0,0.00100576]
[1736865920608,0.26350692,96902.0,96901.0,0.00100576]
[1736865921134,0.26250692,96902.0,96901.0,0.00100576]
[1736865921960,0.78817492,96902.0,96901.0,0.00100576]
[1736865922291,0.15,96893.0,96876.0,7e-05]
[1736865922574,0.10422692,96877.0,96876.0,0.0005707]
[1736865922994,0.13310782,96877.0,96876.0,0.0005707]
[1736865923630,0.13310782,96877.0,96876.0,0.0015707]
[1736865923831,0.10422692,96877.0,96876.0,0.0015707]
[1736865924234,0.13310782,96877.0,96876.0,0.0015707]
[1736865924423,0.28310782,96877.0,96876.0,0.0015707]
[1736865924862,0.28710782,96877.0,96876.0,0.0005707]
[1736865925058,0.28710782,96877.0,96858.0,0.22782977]
[1736865925059,0.15,96874.0,96873.0,0.0007089]
[1736865925277,0.28310782,96874.0,96873.0,0.00085857]
[1736865925725,0.25422692,96874.0,96873.0,0.00085857]
[1736865926306,0.26150692,96874.0,96873.0,0.00085857]
[1736865926506,0.26950692,96874.0,96873.0,0.00185857]
[1736865926715,0.26150692,96874.0,96873.0,0.00085857]
[1736865927542,0.11150692,96874.0,96873.0,0.00085857]
[1736865927892,0.10722692,96874.0,96873.0,0.00085857]
[1736865928318,0.11450692,96874.0,96873.0,0.04838142]
[1736865928519,0.11150692,96874.0,96873.0,0.04838142]
[1736865928927,0.12050692,96874.0,96873.0,0.04938142]
[1736865929143,0.11250692,96874.0,96873.0,0.04838142]
[1736865929318,0.11150692,96874.0,96873.0,0.04838142]
[1736865929596,0.11450692,96874.0,96873.0,0.12488142]
[1736865929763,0.001,96874.0,96873.0,0.12591353]
[1736865930130,0.004,96874.0,96873.0,0.34639307]
[1736865930379,0.06497419,96921.0,96904.0,0.04752285]
[1736865930380,0.01035341,96915.0,96904.0,0.04752285]
[1736865930582,0.01035341,96915.0,96881.0,0.1]
[1736865930583,0.01618981,96930.0,96921.0,0.04752285]
[1736865930835,0.01031568,96954.0,96947.0,0.04752285]
[1736865931016,0.10422692,96948.0,96935.0,0.0786]
[1736865931192,0.10422692,96944.0,96942.0,0.04752285]
[1736865931392,0.10422692,96943.0,96933.0,0.04652285]
[1736865931597,0.10422692,96934.0,96933.0,0.04652285]
[1736865931951,0.11150692,96934.0,96926.0,0.04652285]
[1736865932127,0.10422692,96927.0,96926.0,0.04652285]
[1736865932476,0.11150692,96927.0,96926.0,0.04652285]
[1736865933395,0.11150692,96927.0,96926.0,0.04752285]
[1736865933597,0.11150692,96927.0,96926.0,0.04652285]
[1736865934219,0.10422692,96927.0,96926.0,0.04652285]
[1736865934416,0.11150692,96927.0,96926.0,0.04652285]
[1736865934583,0.11150692,96927.0,96920.0,0.04652285]
[1736865934787,0.00728,96927.0,96926.0,0.04652285]
[1736865934980,0.11250692,96927.0,96921.0,0.04652285]
[1736865935367,0.10422692,96924.0,96923.0,0.04652285]
[1736865935576,0.10422692,96924.0,96921.0,0.04652285]
[1736865935746,0.10422692,96922.0,96920.0,0.002]
[1736865935950,0.10422692,96921.0,96920.0,0.002]
[1736865936181,0.10422692,96921.0,96906.0,0.0477]
[1736865936182,0.10422692,96921.0,96914.0,0.04652285]
[1736865936353,0.00728,96927.0,96916.0,0.04652285]
[1736865936678,0.00728,96927.0,96923.0,0.001]
[1736865936818,0.25422692,96924.0,96923.0,0.001]
[1736865937864,0.10422692,96924.0,96922.0,0.04652285]
[1736865938944,0.10422692,96924.0,96903.0,0.00103188]
[1736865938945,0.10422692,96924.0,96923.0,0.04652285]
[1736865939154,0.11174692,96924.0,96923.0,0.04652285]
[1736865939359,0.10422692,96924.0,96923.0,0.04652285]
[1736865939643,0.15,96923.0,96911.0,0.04652285]
[1736865939851,0.15,96911.0,96896.0,0.04652285]
[1736865940054,0.15,96911.0,96888.0,0.1263]
[1736865940055,0.10422692,96901.0,96888.0,0.0786]
[1736865940260,0.15,96911.0,96888.0,0.0786]
[1736865940467,0.25422692,96892.0,96879.0,0.04652285]
[1736865940637,0.00752,96891.0,96887.0,0.04652285]
[1736865940869,0.15,96889.0,96887.0,0.04652285]
[1736865941044,0.10422692,96888.0,96887.0,0.04652285]
[1736865941253,0.10422692,96888.0,96887.0,0.04667252]
[1736865941455,0.11174692,96888.0,96887.0,0.04667252]
[1736865942272,0.11474692,96888.0,96887.0,0.04667252]
[1736865942471,0.11274692,96888.0,96887.0,0.04667252]
[1736865942879,0.11174692,96888.0,96887.0,0.04667252]
[1736865943020,0.10422692,96888.0,96887.0,0.04867252]
[1736865943252,0.10422692,96888.0,96887.0,0.04967252]
[1736865943519,0.11174692,96888.0,96887.0,0.04967252]
[1736865943767,0.11174692,96888.0,96887.0,0.00314967]
[1736865944298,0.11174692,96888.0,96887.0,0.04967252]
[1736865944547,0.26174692,96888.0,96887.0,0.00214967]
[1736865944923,0.26174692,96888.0,96887.0,0.00205774]
[1736865945099,0.73848711,96888.0,96887.0,0.00205774]
[1736865945305,0.61376201,96888.0,96887.0,0.00905774]
[1736865945567,0.61376201,96888.0,96887.0,5.774e-05]
[1736865945568,0.55677101,96888.0,96887.0,5.774e-05]
[1736865945695,0.55777101,96888.0,96887.0,5.774e-05]
[1736865945898,0.68447955,96888.0,96887.0,5.774e-05]
[1736865946098,0.68447955,96888.0,96873.0,0.0007089]
[1736865946099,0.05347715,96881.0,96873.0,0.0007089]
[1736865946328,0.55422692,96874.0,96873.0,0.0007089]
[1736865946551,0.58310782,96874.0,96873.0,0.0007089]
[1736865947134,1.14974002,96874.0,96873.0,0.0007089]
[1736865947329,0.87194002,96874.0,96873.0,0.0007089]
[1736865947550,0.73363002,96874.0,96873.0,0.0007089]
[1736865947788,0.74387502,96874.0,96873.0,0.0007089]
[1736865947985,0.60537467,96874.0,96873.0,0.0007089]
[1736865948189,0.58154947,96874.0,96873.0,0.0007089]
[1736865948406,0.57048018,96874.0,96873.0,0.0007089]
[1736865948975,0.56448018,96874.0,96873.0,0.0007089]
[1736865949184,0.57348018,96874.0,96873.0,0.0007089]
[1736865949392,0.27600018,96874.0,96873.0,0.0007089]
[1736865949771,0.27900018,96874.0,96873.0,0.0007089]
[1736865949974,0.26848018,96874.0,96873.0,0.0007089]
[1736865950180,0.11574692,96874.0,96873.0,0.0007089]
[1736865950387,0.12074692,96874.0,96873.0,0.0007089]
[1736865950772,0.10922692,96874.0,96873.0,0.0007089]
[1736865950972,0.11874692,96874.0,96873.0,0.0007089]
[1736865951586,0.10422692,96874.0,96873.0,0.0007089]
[1736865951953,0.11674692,96874.0,96873.0,0.0007089]
[1736865952162,0.11174692,96874.0,96873.0,0.0007089]
[1736865952540,0.11274692,96874.0,96873.0,0.0007089]
[1736865952861,0.11374692,96874.0,96873.0,0.0007089]
[1736865953276,0.26374692,96874.0,96873.0,0.0007089]
[1736865954503,0.26274692,96874.0,96873.0,0.0007089]
[1736865954720,0.26374692,96874.0,96873.0,0.0007089]
[1736865954937,0.31306947,96874.0,96873.0,0.0007089]
[1736865955134,0.33848545,96874.0,96873.0,0.0007089]
[1736865955342,1.66662045,96874.0,96873.0,0.0007089]
[1736865955553,1.23532745,96874.0,96873.0,0.0007089]
[1736865955772,1.24432745,96874.0,96873.0,0.0007089]
[1736865955978,0.75508745,96874.0,96873.0,0.0007089]
[1736865956379,0.8215646,96874.0,96873.0,0.0007089]
[1736865956604,0.78524205,96874.0,96873.0,0.0007089]
[1736865956758,0.76082607,96874.0,96873.0,0.0007089]
[1736865956978,0.61313392,96874.0,96873.0,0.0007089]
[1736865957193,0.25822692,96874.0,96873.0,0.0007089]
[1736865957392,0.26574692,96874.0,96873.0,0.0007089]
[1736865957769,0.26174692,96874.0,96873.0,0.0007089]
[1736865957971,0.12074692,96874.0,96873.0,0.0007089]
[1736865958231,0.12474692,96874.0,96873.0,0.0007089]
[1736865958599,0.12074692,96874.0,96873.0,0.0007089]
[1736865958799,0.11474692,96874.0,96873.0,0.0007089]
[1736865959117,0.12274692,96874.0,96873.0,0.0007089]
[1736865959520,0.11174692,96874.0,96873.0,0.0007089]
[1736865959698,0.10922692,96874.0,96873.0,0.0007089]
[1736865960311,0.11674692,96874.0,96873.0,0.0007089]
[1736865961129,0.11174692,96874.0,96873.0,0.0007089]
[1736865961322,0.10422692,96874.0,96873.0,0.0007089]
[1736865961483,0.11122692,96874.0,96873.0,0.0007089]
[1736865961687,0.11122692,96874.0,96873.0,0.04723175]
[1736865961924,0.11174692,96874.0,96873.0,0.04723175]
[1736865962132,0.11174692,96874.0,96873.0,0.04923175]
[1736865962585,0.26174692,96874.0,96873.0,0.0007089]
[1736865962900,1.00917611,96874.0,96873.0,0.0027089]
[1736865963024,0.75203111,96874.0,96873.0,0.0027089]
[1736865963229,0.77503111,96874.0,96873.0,0.0027089]
[1736865963733,0.78516643,96874.0,96873.0,0.0027089]
[1736865964331,0.78516643,96874.0,96873.0,0.0007089]
[1736865964484,0.06497419,96860.0,96858.0,0.0008541]
[1736865964684,0.44314492,96859.0,96858.0,0.0008541]
[1736865964844,0.59120692,96859.0,96858.0,0.0008541]
[1736865965047,0.25422692,96859.0,96858.0,0.0008541]
[1736865965281,0.26174692,96859.0,96858.0,0.0008541]
[1736865965686,0.25422692,96859.0,96858.0,0.0008541]
[1736865965934,0.26322692,96859.0,96858.0,0.0008541]
[1736865966112,0.26190692,96859.0,96858.0,0.0769541]
[1736865966310,0.10422692,96859.0,96858.0,0.0769541]
[1736865966513,0.11190692,96859.0,96858.0,0.12347695]
[1736865966784,0.11390692,96859.0,96858.0,0.12347695]
[1736865966914,0.11390692,96859.0,96858.0,0.16957695]
[1736865967543,0.11990692,96859.0,96858.0,0.16957695]
[1736865967927,0.11390692,96859.0,96858.0,0.0469541]
[1736865968157,0.11190692,96859.0,96858.0,0.0008541]
[1736865968349,0.10522692,96859.0,96858.0,0.0058541]
[1736865968559,0.11190692,96859.0,96858.0,0.0008541]
[1736865969055,0.11290692,96859.0,96858.0,0.0058541]
[1736865969270,0.10422692,96859.0,96858.0,0.0008541]
[1736865969455,0.11190692,96859.0,96858.0,0.04937695]
[1736865969793,0.00768,96859.0,96858.0,0.04937695]
[1736865970173,0.06497419,96887.0,96886.0,0.04652285]
[1736865970378,0.18298445,96903.0,96887.0,0.04652285]
[1736865970593,0.26736855,96920.0,96887.0,0.04652285]
[1736865970594,0.01619023,96899.0,96887.0,0.09262285]
[1736865970821,0.09149222,96911.0,96910.0,0.04652285]
[1736865971154,0.00049984,96911.0,96910.0,0.04652285]
[1736865971509,0.00049984,96911.0,96910.0,0.12262285]
[1736865971719,0.00049984,96911.0,96910.0,0.12365452]
[1736865972271,0.00049984,96911.0,96910.0,0.12865452]
[1736865972272,0.10572676,96911.0,96910.0,0.12865452]
[1736865972478,0.10572676,96911.0,96910.0,0.12762285]
[1736865972701,0.10472676,96911.0,96910.0,0.0761]
[1736865972902,0.10472676,96911.0,96909.0,0.04652285]
[1736865973063,0.10422692,96910.0,96909.0,0.04652285]
[1736865973271,0.15,96909.0,96901.0,0.04652285]
[1736865973509,0.15,96905.0,96894.0,0.0827]
[1736865973711,0.10422692,96895.0,96887.0,0.0461]
[1736865973910,0.10422692,96888.0,96881.0,0.04652285]
[1736865974255,0.10422692,96883.0,96882.0,0.04652285]
[1736865975846,0.10422692,96883.0,96878.0,0.04652285]
[1736865976117,0.10422692,96880.0,96878.0,0.04652285]
[1736865976321,0.00768,96879.0,96878.0,0.04652285]
[1736865976524,0.00768,96879.0,96865.0,0.0827]
[1736865976525,0.11190692,96879.0,96877.0,0.04652285]
[1736865976732,0.10422692,96878.0,96877.0,0.04652285]
[1736865977080,0.10422692,96878.0,96873.0,0.04652285]
[1736865977409,0.10422692,96878.0,96877.0,0.04652285]
[1736865977846,0.15,96877.0,96873.0,0.0001497]
[1736865978025,0.25422692,96874.0,96873.0,0.0001497]
[1736865981185,0.55422692,96874.0,96873.0,0.0001497]
[1736865981389,0.61920111,96874.0,96873.0,0.0001497]
[1736865981596,0.88495011,96874.0,96873.0,0.0001497]
[1736865981834,0.88895011,96874.0,96873.0,0.0001497]
[1736865982038,0.88495011,96874.0,96873.0,0.0001497]
[1736865982439,1.06142726,96874.0,96873.0,0.0001497]
[1736865982647,1.07242726,96874.0,96873.0,0.0001497]
[1736865983047,0.96860826,96874.0,96873.0,0.0001497]
[1736865983251,0.11322692,96874.0,96873.0,0.0001497]
[1736865983576,0.12290692,96874.0,96873.0,0.0010044]
[1736865983954,0.11190692,96874.0,96873.0,0.0010044]
[1736865984361,0.11590692,96874.0,96873.0,0.0010044]
[1736865984544,0.10822692,96874.0,96873.0,0.0010044]
[1736865984744,0.11990692,96874.0,96873.0,0.0010044]
[1736865984951,0.11222692,96874.0,96873.0,0.0010044]
[1736865985144,0.11590692,96874.0,96873.0,0.04752725]
[1736865985344,0.12290692,96874.0,96873.0,0.04752725]
[1736865985545,0.11890692,96874.0,96873.0,0.04752725]
[1736865985751,0.11190692,96874.0,96873.0,0.04752725]
[1736865986012,0.11490692,96874.0,96873.0,0.04752725]
[1736865986195,0.11490692,96874.0,96873.0,0.0010044]
[1736865986397,0.11190692,96874.0,96873.0,0.0010044]
[1736865986602,0.10422692,96874.0,96873.0,0.0010044]
[1736865986805,0.11190692,96874.0,96873.0,0.0010044]
[1736865987345,0.12025392,96874.0,96873.0,0.0010044]
[1736865987502,0.27325392,96874.0,96873.0,0.0010044]
[1736865987737,0.27525392,96874.0,96873.0,0.0010044]
[1736865988094,0.27325392,96874.0,96873.0,0.0010044]
[1736865988296,0.27525392,96874.0,96873.0,0.0010044]
[1736865988511,0.41388801,96874.0,96873.0,0.0010044]
[1736865988726,0.41188801,96874.0,96873.0,0.0010044]
[1736865989355,0.4758622,96874.0,96873.0,0.0010044]
[1736865989621,0.41470526,96874.0,96873.0,0.0010044]
[1736865989812,0.84864626,96874.0,96873.0,0.0010044]
[1736865989947,0.71651426,96874.0,96873.0,0.0010044]
[1736865990215,0.58960311,96874.0,96873.0,0.0010044]
[1736865990379,0.33822811,96874.0,96873.0,0.0010044]
[1736865990779,0.33622811,96874.0,96873.0,0.0010044]
[1736865991326,0.35732772,96874.0,96873.0,0.0010044]
[1736865991466,0.36300772,96874.0,96873.0,0.0010044]
[1736865991868,0.52100772,96874.0,96873.0,0.0010044]
[1736865992334,0.33188111,96874.0,96873.0,0.0010044]
[1736865992526,0.32620111,96874.0,96873.0,0.0010044]
[1736865992836,0.32888111,96874.0,96873.0,0.0010044]
[1736865992972,0.32988111,96874.0,96873.0,0.0010044]
[1736865993443,0.32220111,96874.0,96873.0,0.0010044]
[1736865993620,0.32888111,96874.0,96873.0,0.0010044]
[1736865994187,0.32688111,96874.0,96873.0,0.0010044]
[1736865994594,0.32888111,96874.0,96873.0,0.0010044]
[1736865995026,0.32220111,96874.0,96873.0,0.0010044]
[1736865995236,0.32988111,96874.0,96873.0,0.0010044]
[1736865995443,0.32688111,96874.0,96873.0,0.0010044]
[1736865995657,0.32788111,96874.0,96873.0,0.0010044]
[1736865995833,0.32988111,96874.0,96873.0,0.0010044]
[1736865996064,0.25722692,96874.0,96873.0,0.0010044]
[1736865996235,0.25722692,96874.0,96873.0,0.17552725]
[1736865996900,0.25622692,96874.0,96873.0,0.17552725]
[1736865997473,0.25422692,96874.0,96873.0,0.17552725]
[1736865997715,0.26186692,96874.0,96873.0,0.17552725]
[1736865997900,0.10422692,96874.0,96873.0,0.17552725]
[1736865998101,0.18512661,96883.0,96873.0,0.17552725]
[1736865998102,0.10061544,96883.0,96876.0,0.04652285]
[1736865998309,0.25422692,96877.0,96876.0,0.04652285]
[1736865998508,0.15,96876.0,96875.0,0.04652285]
[1736865998825,0.25422692,96876.0,96875.0,0.04652285]
[1736865999464,0.00179466,96888.0,96873.0,0.1290044]
[1736865999465,0.00179466,96888.0,96886.0,0.04652285]
[1736865999641,0.11366179,96887.0,96886.0,0.04652285]
[1736866000814,0.11366179,96887.0,96882.0,0.04652285]
[1736866001164,0.15,96885.0,96882.0,0.04652285]
[1736866001367,0.15,96883.0,96880.0,0.04652285]
[1736866001521,0.15,96883.0,96873.0,0.1290044]
[1736866001522,0.10422692,96881.0,96876.0,0.04652285]
[1736866001726,0.10422692,96881.0,96874.0,0.04652285]
[1736866001931,0.15,96874.0,96873.0,0.0010044]
[1736866002130,0.25422692,96874.0,96873.0,0.0010044]
[1736866004805,0.25422692,96874.0,96873.0,0.0020044]
[1736866005413,0.25422692,96874.0,96873.0,0.0010044]
[1736866005638,0.25422692,96874.0,96873.0,0.0020044]
[1736866007015,0.25422692,96874.0,96873.0,0.0010044]
[1736866007266,0.25422692,96874.0,96873.0,0.0020044]
[1736866007633,0.25422692,96874.0,96873.0,0.0010044]
[1736866007837,0.26221809,96874.0,96873.0,0.0020044]
[1736866008239,0.58521809,96874.0,96873.0,0.0020044]
[1736866008437,0.94109824,96874.0,96873.0,0.0030044]
[1736866008817,0.473,96859.0,96833.0,0.0496]
[1736866009018,0.173,96858.0,96824.0,0.0774]
[1736866009247,0.27722692,96855.0,96824.0,0.0774]
[1736866009443,0.27722692,96855.0,96835.0,0.04737835]
[1736866009784,0.27722692,96855.0,96835.0,0.0008555]
[1736866009785,0.37249392,96855.0,96835.0,0.0008555]
[1736866010555,0.562992,96854.0,96835.0,0.0008555]
[1736866010782,0.25422692,96838.0,96835.0,0.0008555]
[1736866011497,0.25422692,96838.0,96835.0,0.04737835]
[1736866011699,0.25422692,96838.0,96835.0,0.0008555]
[1736866012031,0.25737671,96838.0,96835.0,0.0008555]
[1736866012385,0.25737671,96838.0,96837.0,0.04737645]
[1736866013015,0.11501671,96838.0,96837.0,0.04737645]
[1736866013215,0.11201671,96838.0,96837.0,0.04737645]
[1736866013418,0.12421838,96838.0,96837.0,0.04737645]
[1736866013668,0.11601671,96838.0,96837.0,0.04737645]
[1736866013838,0.11301671,96838.0,96837.0,0.04737645]
[1736866014099,0.11201671,96838.0,96837.0,0.04737645]
[1736866014266,0.11301671,96838.0,96837.0,0.05337645]
[1736866014470,0.11201671,96838.0,96837.0,0.05037645]
[1736866014968,0.11201671,96838.0,96837.0,0.0058536]
[1736866015144,0.11201671,96838.0,96837.0,0.0038536]
[1736866015535,0.11201671,96838.0,96837.0,0.0008536]
[1736866015732,0.26201671,96838.0,96837.0,0.0008536]
[1736866015971,0.26201671,96838.0,96837.0,0.0018536]
[1736866015972,0.25437671,96838.0,96837.0,0.0018536]
[1736866016173,0.26201671,96838.0,96837.0,0.0018536]
[1736866016350,0.26201671,96838.0,96837.0,0.0008536]
[1736866016555,0.26201671,96838.0,96837.0,0.0038536]
[1736866016867,0.26201671,96838.0,96837.0,0.0008536]
[1736866017250,0.26601671,96838.0,96837.0,0.0008536]
[1736866017450,0.26301671,96838.0,96837.0,0.0008536]
[1736866017655,0.26601671,96838.0,96837.0,0.0008536]
[1736866018754,0.26501671,96838.0,96837.0,0.0008536]
[1736866019299,0.49839811,96838.0,96837.0,0.0008536]
[1736866020287,0.26701671,96838.0,96837.0,0.0008536]
[1736866020553,0.64030586,96838.0,96837.0,0.0008536]
[1736866020743,0.206564,96822.0,96804.0,0.0008536]
[1736866020921,0.10422692,96808.0,96804.0,0.0008536]
[1736866021179,0.26186692,96808.0,96804.0,0.0008536]
[1736866021379,0.80761592,96808.0,96804.0,0.0008536]
[1736866021638,0.05347715,96805.0,96800.0,0.0233728]
[1736866021824,0.25422692,96801.0,96800.0,0.0225192]
[1736866022147,0.15,96794.0,96771.0,0.0782]
[1736866022347,0.25422692,96791.0,96771.0,0.0782]
[1736866022671,0.25422692,96791.0,96767.0,0.0463]
[1736866022799,0.25422692,96791.0,96769.0,0.04652285]
[1736866023210,0.06497419,96790.0,96762.0,0.0782]
[1736866023427,0.25422692,96777.0,96762.0,0.0782]
[1736866024279,0.25422692,96777.0,96768.0,0.04652285]
[1736866024430,0.25422692,96777.0,96762.0,0.0782]
[1736866024630,0.25422692,96777.0,96764.0,0.04652285]
[1736866024832,0.25422692,96777.0,96766.0,0.04652285]
[1736866025218,0.25422692,96777.0,96773.0,0.03702215]
[1736866025219,0.26686692,96777.0,96773.0,0.03702215]
[1736866025469,0.10422692,96776.0,96773.0,0.03702215]
[1736866025659,0.15,96775.0,96773.0,0.03702215]
[1736866025864,0.11178692,96774.0,96773.0,0.03702215]
[1736866026214,0.15,96773.0,96767.0,0.03702215]
[1736866026414,0.15,96767.0,96762.0,0.0782]
[1736866026720,0.15,96760.0,96757.0,0.0008543]
[1736866026859,0.15,96760.0,96745.0,0.03709215]
[1736866026860,0.206703,96757.0,96745.0,7e-05]
[1736866027046,0.25422692,96746.0,96745.0,7e-05]
[1736866027671,0.47851592,96746.0,96745.0,7e-05]
[1736866027877,0.25422692,96746.0,96745.0,7e-05]
[1736866028288,0.48773392,96746.0,96745.0,7e-05]
[1736866028476,0.38692092,96746.0,96745.0,7e-05]
[1736866028698,0.26789617,96746.0,96745.0,7e-05]
[1736866028906,0.27045617,96746.0,96745.0,7e-05]
[1736866029114,0.26289617,96746.0,96745.0,0.03709215]
[1736866029324,0.27945617,96746.0,96745.0,0.03709215]
[1736866029534,0.11322692,96746.0,96745.0,0.03709215]
[1736866029798,0.12378692,96746.0,96745.0,0.03709215]
[1736866030034,0.12378692,96746.0,96745.0,7e-05]
[1736866030409,0.12078692,96746.0,96745.0,7e-05]
[1736866030596,0.57078692,96746.0,96745.0,7e-05]
[1736866030797,0.26178692,96746.0,96745.0,0.0009246]
[1736866031379,0.26878692,96746.0,96745.0,0.0009246]
[1736866031974,0.27278692,96746.0,96745.0,0.0009246]
[1736866032177,0.26178692,96746.0,96745.0,0.0009246]
[1736866032622,0.26778692,96746.0,96745.0,0.0009246]
[1736866032781,0.26378692,96746.0,96745.0,0.0009246]
[1736866033003,0.29578692,96746.0,96745.0,0.0009246]
[1736866033200,0.49111392,96746.0,96745.0,0.0009246]
[1736866033398,1.58636596,96746.0,96745.0,0.0009246]
[1736866033603,1.58636596,96746.0,96702.0,0.0463]
[1736866033604,0.15,96717.0,96702.0,0.0463]
[1736866033803,0.206776,96723.0,96709.0,0.00072832]
[1736866033804,0.10422692,96713.0,96709.0,0.00072832]
[1736866034000,0.25422692,96710.0,96709.0,0.00072832]
[1736866034849,0.15,96709.0,96698.0,0.03702215]
[1736866035074,0.25422692,96704.0,96698.0,0.03702215]
[1736866035922,0.25422692,96704.0,96694.0,0.03702215]
[1736866036066,0.25422692,96704.0,96688.0,0.0463]
[1736866036282,0.55422692,96704.0,96688.0,0.0463]
[1736866036490,0.55422692,96704.0,96684.0,0.0782]
[1736866036491,0.61920111,96704.0,96684.0,0.0782]
[1736866036913,0.32676111,96704.0,96691.0,0.03702215]
[1736866037175,0.62676111,96704.0,96684.0,0.0782]
[1736866037508,0.76876111,96704.0,96673.0,0.045]
[1736866037708,0.86876111,96704.0,96671.0,0.0773]
[1736866037930,0.86876111,96704.0,96670.0,0.00072832]
[1736866037931,1.79903896,96704.0,96670.0,0.00072832]
[1736866038154,1.79903896,96704.0,96672.0,0.03702215]
[1736866038358,0.15,96683.0,96670.0,0.00072832]
[1736866038687,0.25422692,96677.0,96660.0,0.0773]
[1736866038891,0.25422692,96677.0,96672.0,0.03702215]
[1736866039530,0.25422692,96677.0,96676.0,0.03787645]
[1736866039712,0.10422692,96677.0,96676.0,0.03787645]
[1736866039916,9.767e-05,96677.0,96676.0,0.03787645]
[1736866040113,9.767e-05,96677.0,96676.0,0.36121059]
[1736866040320,9.767e-05,96677.0,96676.0,0.26017645]
[1736866040539,9.767e-05,96677.0,96676.0,0.16017645]
[1736866040752,9.767e-05,96677.0,96676.0,0.2612106]
[1736866040950,9.767e-05,96677.0,96676.0,0.26017645]
[1736866041164,9.767e-05,96677.0,96676.0,0.36017645]
[1736866041348,9.767e-05,96677.0,96676.0,0.26017645]
[1736866041572,0.00109767,96677.0,96676.0,0.26017645]
[1736866041728,9.767e-05,96677.0,96676.0,0.26017645]
[1736866041947,0.10432459,96677.0,96676.0,0.16017645]
[1736866042291,0.25532459,96677.0,96676.0,0.16017645]
[1736866042545,0.25432459,96677.0,96676.0,0.0008543]
[1736866042735,0.25532459,96677.0,96676.0,0.0008543]
[1736866043062,0.25632459,96677.0,96676.0,0.03787645]
[1736866043460,0.11388459,96677.0,96676.0,0.03787645]
[1736866043685,0.11288459,96677.0,96676.0,0.03787645]
[1736866044126,0.00109767,96677.0,96676.0,0.26017645]
[1736866044364,0.8673,96729.0,96676.0,0.26017645]
[1736866044365,0.00885602,96725.0,96711.0,0.03702215]
[1736866044572,0.1,96746.0,96705.0,0.0773]
[1736866044573,0.10422692,96719.0,96718.0,0.03702215]
[1736866044788,0.00756,96725.0,96724.0,0.03702215]
[1736866044993,0.00014999,96726.0,96725.0,0.03702215]
[1736866045203,0.00014999,96726.0,96725.0,0.13805581]
[1736866045380,0.00014999,96726.0,96725.0,0.11535581]
[1736866045909,0.00014999,96726.0,96725.0,0.21535581]
[1736866046114,0.31408459,96760.0,96738.0,0.03702215]
[1736866046322,0.11178692,96759.0,96757.0,0.03702215]
[1736866046651,0.11178692,96759.0,96739.0,0.00103348]
[1736866046652,0.10422692,96758.0,96739.0,0.03702215]
[1736866046785,0.15,96742.0,96732.0,0.03702215]
[1736866047125,0.46408459,96740.0,96732.0,0.03702215]
[1736866047326,0.15,96738.0,96732.0,0.03702215]
[1736866047526,0.15,96736.0,96732.0,0.03702215]
[1736866047672,0.15,96734.0,96732.0,0.03702215]
[1736866047872,0.10422692,96733.0,96732.0,0.03702215]
[1736866048096,0.11178692,96733.0,96732.0,0.03702215]
[1736866048303,0.26178692,96733.0,96732.0,0.03702215]
[1736866048497,0.00756,96733.0,96732.0,0.03702215]
[1736866048708,0.001,96736.0,96735.0,0.03702215]
[1736866048914,0.00756,96752.0,96735.0,0.03805576]
[1736866049121,0.00756,96752.0,96750.0,0.03702215]
[1736866049122,0.25422692,96751.0,96750.0,0.03702215]
[1736866049728,0.10422692,96751.0,96750.0,0.03702215]
[1736866050203,0.10422692,96751.0,96747.0,0.03702215]
[1736866050402,0.15,96759.0,96726.0,0.00103357]
[1736866050403,0.15,96747.0,96746.0,0.03702215]
[1736866050640,0.25422692,96747.0,96739.0,0.03702215]
[1736866050979,0.15,96741.0,96739.0,0.03702215]
[1736866051109,0.00756,96750.0,96735.0,0.001]
[1736866051110,0.15,96739.0,96735.0,0.001]
[1736866051311,0.15,96739.0,96733.0,0.03702215]
[1736866051312,0.15,96737.0,96733.0,0.03702215]
[1736866051522,0.15,96735.0,96733.0,0.03702215]
[1736866051720,0.15,96733.0,96732.0,0.03702215]
[1736866051925,0.25422692,96733.0,96729.0,0.03702215]
[1736866052137,0.15,96731.0,96730.0,0.03702215]
[1736866052400,0.25422692,96731.0,96720.0,0.03702215]
[1736866052599,0.15,96720.0,96705.0,0.08202215]
[1736866052737,0.15,96712.0,96708.0,0.03702215]
[1736866053072,0.15,96710.0,96708.0,0.03702215]
[1736866053282,0.10422692,96709.0,96708.0,0.03702215]
[1736866053826,0.10422692,96709.0,96708.0,0.03752205]
[1736866054604,0.25422692,96709.0,96708.0,0.0004999]
[1736866055304,0.25422692,96709.0,96708.0,0.0014999]
[1736866055587,0.54548892,96709.0,96708.0,0.0004999]
[1736866055797,0.25422692,96709.0,96708.0,0.0004999]
[1736866056004,0.25422692,96709.0,96708.0,0.0014999]
[1736866056173,0.26222692,96709.0,96708.0,0.0014999]
[1736866057472,0.26222692,96709.0,96708.0,0.0004999]
[1736866057747,0.27122692,96709.0,96708.0,0.0004999]
[1736866057975,0.43007692,96709.0,96708.0,0.0004999]
[1736866058146,0.63331292,96709.0,96708.0,0.0004999]
[1736866058377,0.26822692,96709.0,96708.0,0.0004999]
[1736866059020,0.27022692,96709.0,96708.0,0.0004999]
[1736866059254,0.11222692,96709.0,96708.0,0.0004999]
[1736866059488,0.12022692,96709.0,96708.0,0.0004999]
[1736866059739,0.11222692,96709.0,96708.0,0.0004999]
[1736866059956,0.12022692,96709.0,96708.0,0.0004999]
[1736866060160,0.11822692,96709.0,96708.0,0.0004999]
[1736866060313,0.12022692,96709.0,96708.0,0.0004999]
[1736866060526,0.11422692,96709.0,96708.0,0.0004999]
[1736866061470,0.11922692,96709.0,96708.0,0.0004999]
[1736866061678,0.10422692,96709.0,96708.0,0.0004999]
[1736866061879,0.11222692,96709.0,96708.0,0.0004999]
[1736866062086,0.12022692,96709.0,96708.0,0.0004999]
[1736866062317,0.12022692,96709.0,96708.0,0.03752205]
[1736866062318,0.11222692,96709.0,96708.0,0.03752205]
[1736866062668,0.10422692,96709.0,96708.0,0.03752205]
[1736866062890,0.10622692,96709.0,96708.0,0.03752205]
[1736866063050,0.11422692,96709.0,96708.0,0.03752205]